bitfinex/quotes_SOLUSD_20250622
["timestamp","ask_amount","ask_price","bid_price","bid_amount"]
[1750560612897,5.09731896,134.94,134.92,18.58342089]
[1750560613055,5.09731896,134.94,134.93,18.58342089]
[1750560614273,5.09731896,134.94,134.93,23.03017105]
[1750560615588,5.09731896,134.94,134.9,4.44773906]
[1750560615756,5.09731896,134.94,134.91,18.58342089]
[1750560616163,5.09731896,134.94,134.93,4.44675016]
[1750560618358,5.09731896,134.94,134.92,23.03045173]
[1750560618680,5.09731896,134.94,134.92,4.44703084]
[1750560620569,5.09731896,134.94,134.91,4.44740938]
[1750560620978,5.09731896,134.94,134.87,70.48728404]
[1750560620979,5.09731896,134.94,134.89,18.58342089]
[1750560621183,18.58342089,134.93,134.89,18.58342089]
[1750560621479,23.68073985,134.94,134.89,18.58342089]
[1750560621654,5.09731896,134.94,134.9,18.58342089]
[1750560622050,23.68073985,134.94,134.9,18.58342089]
[1750560622664,23.68073985,134.94,134.9,23.03086211]
[1750560623065,18.58342089,134.93,134.9,4.44744122]
[1750560623588,5.09731896,134.94,134.9,4.44744122]
[1750560623763,5.09731896,134.94,134.92,18.58342089]
[1750560624386,5.09731896,134.94,134.9,23.03086211]
[1750560624575,23.68073985,134.94,134.9,23.03086211]
[1750560624891,5.09731896,134.94,134.9,23.03086211]
[1750560625311,5.09731896,134.94,134.92,18.58342089]
[1750560627375,5.09731896,134.94,134.93,4.44675016]
[1750560627579,5.09731896,134.94,134.93,23.03017105]
[1750560629295,5.09731896,134.94,134.92,4.44707975]
[1750560629497,5.09731896,134.94,134.92,23.03050064]
[1750560629865,5.09731896,134.94,134.93,18.58342089]
[1750560630071,5.09731896,134.94,134.93,37.23306975]
[1750560630282,5.09731896,134.94,134.93,43.39116975]
[1750560630883,1.5363,135.03,134.96,26.0]
[1750560631096,1.5363,135.03,135.01,18.58342089]
[1750560631291,20.12292089,135.07,134.98,19.35380507]
[1750560631595,20.12292089,135.07,135.03,18.58342089]
[1750560631801,20.12292089,135.07,135.02,18.58342089]
[1750560633400,20.12292089,135.07,135.03,4.443457]
[1750560634472,1.5395,135.07,135.03,23.02687789]
[1750560634890,20.12292089,135.07,135.03,4.443457]
[1750560636006,18.58342089,135.06,135.01,18.58342089]
[1750560636173,20.12292089,135.07,135.02,18.58342089]
[1750560636871,1.5395,135.07,135.02,18.58342089]
[1750560637074,20.12292089,135.07,135.02,18.58342089]
[1750560637303,1.5395,135.07,135.04,18.58342089]
[1750560637609,1.5395,135.07,135.05,4.44279896]
[1750560638701,1.5395,135.07,135.03,18.58342089]
[1750560638702,1.5395,135.07,135.04,4.44305251]
[1750560639382,20.12292089,135.07,135.04,4.44305251]
[1750560639978,20.12292089,135.07,135.03,4.4433553]
[1750560640287,20.12292089,135.07,135.03,23.02677619]
[1750560642498,20.12292089,135.07,135.03,4.4433553]
[1750560642799,1.5395,135.07,135.03,23.02677619]
[1750560643186,1.5395,135.07,135.05,18.58342089]
[1750560643715,1.5638,135.11,135.07,15.54749389]
[1750560643897,1.5638,135.11,135.08,18.58342089]
[1750560644203,1.5638,135.11,135.07,15.54749389]
[1750560644699,6.94650055,135.11,135.07,34.13091478]
[1750560645002,6.94650055,135.11,135.08,18.58342089]
[1750560645204,1.5638,135.11,135.08,18.58342089]
[1750560645378,1.5638,135.11,135.09,18.58342089]
[1750560645577,5.38270055,135.12,135.1,18.58342089]
[1750560645797,7.01378195,135.13,135.06,22.21157634]
[1750560645991,7.01378195,135.13,135.1,18.58342089]
[1750560646187,1.6310814,135.13,135.11,18.58342089]
[1750560646502,7.01378195,135.13,135.1,18.58342089]
[1750560647280,7.01378195,135.13,135.06,22.21157634]
[1750560647281,7.01378195,135.13,135.12,18.58342089]
[1750560647484,1.6310814,135.13,135.12,18.58342089]
[1750560647709,1.6310814,135.13,135.12,23.02391822]
[1750560648284,1.6310814,135.13,135.12,4.44049733]
[1750560648481,1.6310814,135.13,135.12,23.02391822]
[1750560652721,7.0165346,135.13,135.11,4.44067644]
[1750560653011,1.6310814,135.13,135.11,4.44067644]
[1750560653209,5.38479071,135.12,135.11,4.44067644]
[1750560653414,5.38479071,135.12,135.1,18.58342089]
[1750560653592,5.38481408,135.11,135.08,4.44181225]
[1750560653792,18.58342089,135.12,135.08,4.44181225]
[1750560654009,5.3848653,135.11,135.08,4.44181225]
[1750560654217,18.58342089,135.12,135.08,4.44181225]
[1750560654438,6.91168104,135.11,135.08,4.44181225]
[1750560654599,5.38748104,135.1,135.08,4.44181225]
[1750560654911,1.6310814,135.13,135.09,18.58342089]
[1750560655117,1.6310814,135.13,135.12,18.58342089]
[1750560655687,1.6310814,135.13,135.12,23.02391822]
[1750560657083,1.6310814,135.13,135.12,4.44049733]
[1750560657287,1.6310814,135.13,135.12,23.02391822]
[1750560658615,1.6310814,135.13,135.12,4.44049733]
[1750560658998,1.6310814,135.13,135.12,23.02391822]
[1750560660916,1.6310814,135.13,135.12,4.44049733]
[1750560661712,1.6310814,135.13,135.12,23.02391822]
[1750560662119,1.6310814,135.13,135.12,4.44049733]
[1750560662487,1.6310814,135.13,135.1,4.44099839]
[1750560663421,18.58342089,135.12,135.06,11.10595715]
[1750560663607,20.24652089,135.12,135.08,18.58342089]
[1750560663798,20.24652089,135.12,135.09,4.44148345]
[1750560664629,1.6631,135.12,135.09,4.44148345]
[1750560665301,1.6310814,135.13,135.11,18.58342089]
[1750560665504,1.6310814,135.13,135.12,18.58342089]
[1750560665929,1.6310814,135.13,135.12,23.02391822]
[1750560666407,1.6310814,135.13,135.12,67.67356708]
[1750560666593,5.04366297,135.18,135.15,26.0]
[1750560666798,5.04366297,135.18,135.17,18.58342089]
[1750560667595,5.04366297,135.18,135.15,26.0]
[1750560667825,5.04366297,135.18,135.17,23.02227566]
[1750560669338,5.04366297,135.18,135.17,30.43885477]
[1750560669499,5.04366297,135.18,135.17,49.02227566]
[1750560671143,5.04366297,135.18,135.17,4.43885477]
[1750560671296,23.62708386,135.18,135.13,18.58342089]
[1750560671634,18.58342089,135.16,135.11,23.02424688]
[1750560672127,18.58342089,135.16,135.11,34.12631186]
[1750560672128,23.99962311,135.16,135.11,34.12631186]
[1750560672303,5.41620222,135.15,135.11,34.12631186]
[1750560672501,23.99962311,135.15,135.11,15.54289097]
[1750560672800,18.58342089,135.15,135.11,15.54289097]
[1750560673718,18.58342089,135.15,135.11,4.44082599]
[1750560673927,24.00838,135.14,135.11,4.44082599]
[1750560674107,5.42410507,135.13,135.1,4.44106399]
[1750560674299,18.58342089,135.14,135.1,4.44106399]
[1750560674506,5.42822934,135.13,135.1,4.44106399]
[1750560674743,18.58342089,135.12,135.08,4.44166264]
[1750560675047,5.42856969,135.11,135.08,4.44166264]
[1750560675208,5.42856969,135.1,135.07,4.44201042]
[1750560675410,18.58342089,135.1,135.03,15.55197299]
[1750560675603,24.0147655,135.09,135.05,18.58342089]
[1750560675921,5.43134461,135.08,135.01,41.55440337]
[1750560676236,5.43345518,135.07,135.03,18.58342089]
[1750560676404,18.58342089,135.08,135.03,18.58342089]
[1750560676740,5.43339038,135.07,135.03,18.58342089]
[1750560676919,18.58342089,135.08,135.03,18.58342089]
[1750560677113,5.43165068,135.07,135.03,18.58342089]
[1750560677433,18.58342089,135.08,135.03,18.58342089]
[1750560677746,18.58342089,135.06,135.01,23.02753614]
[1750560677917,5.43376353,135.05,135.01,23.02753614]
[1750560678106,18.58342089,135.06,135.01,23.02753614]
[1750560678300,24.02133308,135.05,135.01,23.02753614]
[1750560678502,5.43726461,135.04,135.01,23.02753614]
[1750560678707,1.6631,135.05,135.02,18.58342089]
[1750560678907,1.6631,135.05,135.03,18.58342089]
[1750560679112,1.6631,135.05,135.02,18.58342089]
[1750560679318,1.6631,135.05,135.01,34.13782426]
[1750560679643,5.43855864,135.07,135.03,18.58342089]
[1750560679807,1.6631,135.09,135.04,4.44312796]
[1750560680007,24.02262834,135.08,135.04,4.44312796]
[1750560680235,18.58342089,135.06,135.03,4.44338234]
[1750560680420,24.023719,135.05,135.02,4.44365686]
[1750560680641,18.58342089,135.05,135.02,4.44365686]
[1750560681216,24.02535136,135.05,135.02,4.44365686]
[1750560681543,31.48269958,135.09,135.02,4.44365686]
[1750560681544,18.58342089,135.04,135.02,4.44365686]
[1750560681721,18.58342089,135.03,134.98,34.14123721]
[1750560681911,5.44221902,135.06,134.99,18.58342089]
[1750560682111,5.44221902,135.05,135.0,18.58342089]
[1750560682333,5.44221902,135.07,135.03,18.58342089]
[1750560682616,24.02755347,135.08,135.03,18.58342089]
[1750560682927,18.58342089,135.06,135.01,18.58342089]
[1750560683110,18.58342089,135.05,134.98,41.55781632]
[1750560683313,18.58342089,135.05,135.01,18.58342089]
[1750560683848,5.44438533,135.08,135.01,18.58342089]
[1750560684139,5.44438533,135.08,134.98,63.78333121]
[1750560684140,18.58342089,135.08,135.02,15.55325136]
[1750560684329,18.58342089,135.07,135.02,34.13667225]
[1750560684911,34.9431,135.09,135.03,18.58342089]
[1750560685238,18.58342089,135.08,135.03,18.58342089]
[1750560685712,18.58342089,135.07,135.02,15.55325136]
[1750560685914,18.58342089,135.07,135.03,18.58342089]
[1750560686458,18.58342089,135.06,135.01,18.58342089]
[1750560687152,18.58342089,135.06,134.99,15.55670789]
[1750560687153,18.58342089,135.05,135.0,18.58342089]
[1750560687555,18.58342089,135.03,134.99,23.02819457]
[1750560687731,18.58342089,135.03,134.99,4.44477368]
[1750560687916,18.58342089,135.02,134.98,18.58342089]
[1750560688249,18.58342089,135.03,134.98,18.58342089]
[1750560688452,18.27131414,135.06,134.99,18.58342089]
[1750560688654,18.58342089,135.03,134.99,18.58342089]
[1750560689558,8.38,135.06,135.0,4.44444444]
[1750560689859,18.58342089,135.04,135.0,4.44444444]
[1750560690351,18.58342089,135.03,135.0,4.44444444]
[1750560691763,18.58342089,135.03,134.95,18.58342089]
[1750560691764,18.58342089,135.01,134.95,18.58342089]
[1750560691927,18.58342089,134.98,134.93,23.03017105]
[1750560692123,18.58342089,134.97,134.93,4.44675016]
[1750560692733,18.58342089,134.96,134.93,4.44675016]
[1750560693168,18.58342089,134.98,134.93,23.03017105]
[1750560693333,18.58342089,134.98,134.93,34.14704646]
[1750560693838,18.58342089,134.98,134.93,15.56362557]
[1750560694026,18.58342089,134.97,134.93,4.44675016]
[1750560694655,18.58342089,134.95,134.92,4.44705322]
[1750560695157,18.58342089,134.94,134.9,4.44773906]
[1750560696935,4.4455744,134.97,134.9,4.44773906]
[1750560697149,18.58342089,134.97,134.92,18.58342089]
[1750560697332,18.58342089,134.97,134.93,18.58342089]
[1750560697527,18.58342089,134.97,134.9,15.56708672]
[1750560697750,18.58342089,134.97,134.88,22.24110006]
[1750560697751,6.3668,134.94,134.86,4.44905828]
[1750560697937,18.58342089,134.89,134.86,4.44905828]
[1750560698149,18.58342089,134.89,134.84,4.44971818]
[1750560698327,18.58342089,134.88,134.83,4.44994819]
[1750560698661,18.58342089,134.86,134.83,4.44994819]
[1750560698831,18.58342089,134.86,134.82,23.03374758]
[1750560699140,18.58342089,134.86,134.82,4.45032669]
[1750560699336,18.64964886,134.9,134.83,18.58342089]
[1750560699675,6.3668,134.94,134.83,26.0]
[1750560699966,53.98142089,134.93,134.88,18.58342089]
[1750560700140,20.14142089,134.93,134.88,18.58342089]
[1750560700328,52.40342089,134.94,134.89,18.58342089]
[1750560700525,33.82,134.94,134.91,18.58342089]
[1750560700727,33.82,134.94,134.9,18.58342089]
[1750560700957,33.82,134.94,134.91,4.44740938]
[1750560701530,33.82,134.94,134.89,11.12012156]
[1750560701531,18.58342089,134.93,134.89,4.4479795]
[1750560702535,18.58342089,134.91,134.87,4.4487284]
[1750560703065,18.58342089,134.9,134.86,4.44905828]
[1750560703438,18.58342089,134.9,134.86,23.03247917]
[1750560703636,18.58342089,134.9,134.86,4.44905828]
[1750560704360,4.44686571,134.93,134.86,23.03247917]
[1750560704561,18.58342089,134.91,134.86,4.44905828]
[1750560704757,18.58342089,134.9,134.86,4.44905828]
[1750560704952,18.58342089,134.89,134.85,4.44933347]
[1750560705342,18.58342089,134.88,134.85,4.44933347]
[1750560705538,33.7,134.89,134.82,44.58342089]
[1750560705732,18.58342089,134.87,134.83,4.44992968]
[1750560706059,18.58342089,134.86,134.83,4.44992968]
[1750560706260,33.7,134.89,134.83,4.44992968]
[1750560706444,18.58342089,134.87,134.83,4.44992968]
[1750560707242,52.24342089,134.89,134.83,15.5750502]
[1750560707443,33.66,134.89,134.83,34.15847109]
[1750560707646,18.58342089,134.88,134.83,15.5750502]
[1750560707862,18.58342089,134.88,134.84,18.58342089]
[1750560708666,18.58342089,134.88,134.85,4.4493882]
[1750560709653,18.58342089,134.87,134.82,4.45037828]
[1750560709845,18.58342089,134.87,134.82,23.03379917]
[1750560710438,18.58342089,134.87,134.82,4.45037828]
[1750560710633,18.58342089,134.86,134.82,4.45037828]
[1750560711867,18.58342089,134.85,134.82,4.45037828]
[1750560712665,18.58342089,134.85,134.81,15.57734266]
[1750560713368,18.58342089,134.84,134.81,4.4507084]
[1750560713746,18.58342089,134.84,134.79,29.71166818]
[1750560713747,18.58342089,134.83,134.79,4.45136879]
[1750560713957,18.58342089,134.82,134.79,4.45136879]
[1750560714760,18.58342089,134.81,134.78,4.45169906]
[1750560715705,18.58342089,134.81,134.77,15.58202273]
[1750560715874,18.58342089,134.82,134.77,34.16544362]
[1750560716882,18.58342089,134.81,134.77,4.45202938]
[1750560717074,18.64964886,134.82,134.74,18.58342089]
[1750560717292,5.41425572,134.83,134.74,18.58342089]
[1750560717465,37.92974616,134.84,134.73,63.85330714]
[1750560717466,5.41425572,134.84,134.78,18.58342089]
[1750560717797,18.58342089,134.83,134.79,4.45136879]
[1750560718575,17.55427373,134.87,134.79,34.16321166]
[1750560718756,18.58342089,134.84,134.79,15.57979077]
[1750560718956,18.58342089,134.83,134.79,15.57979077]
[1750560719283,18.58342089,134.82,134.79,4.45136879]
[1750560719454,18.58342089,134.82,134.77,4.45202938]
[1750560719654,18.58342089,134.81,134.77,4.45202938]
[1750560719861,18.64964886,134.84,134.77,4.45202938]
[1750560720072,18.58342089,134.8,134.77,4.45202938]
[1750560720479,18.58342089,134.81,134.77,4.45202938]
[1750560722080,52.02342089,134.82,134.77,23.03545027]
[1750560722282,52.08964886,134.86,134.79,18.58342089]
[1750560722458,18.58342089,134.84,134.79,18.58342089]
[1750560723066,18.58342089,134.81,134.77,15.58210283]
[1750560723273,18.58342089,134.82,134.77,34.16552372]
[1750560723878,18.58342089,134.81,134.77,4.45202938]
[1750560724377,23.98995268,134.81,134.77,4.45202938]
[1750560724554,18.58342089,134.81,134.77,4.45202938]
[1750560724952,5.40653179,134.83,134.71,6.0011]
[1750560725157,18.58342089,134.78,134.73,29.71670472]
[1750560725459,18.64964886,134.8,134.74,18.58342089]
[1750560725661,18.58342089,134.8,134.75,18.58342089]
[1750560725861,18.58342089,134.79,134.73,11.13328383]
[1750560726181,18.58342089,134.78,134.73,11.13328383]
[1750560726377,18.58342089,134.79,134.74,18.58342089]
[1750560727161,18.58342089,134.79,134.75,4.45269016]
[1750560727362,18.58342089,134.8,134.75,23.03611105]
[1750560727883,18.58342089,134.8,134.75,15.58441557]
[1750560728182,5.40942226,134.81,134.75,34.16783646]
[1750560728388,18.58342089,134.8,134.76,18.58342089]
[1750560728763,18.58342089,134.8,134.75,15.58441557]
[1750560729065,18.58342089,134.8,134.75,34.16783646]
[1750560731861,18.58342089,134.8,134.75,34.16783646]
[1750560732472,36.35797244,134.87,134.79,18.58342089]
[1750560732664,36.35797244,134.87,134.78,32.3246]
[1750560732665,18.58342089,134.86,134.78,32.3246]
[1750560732941,18.58342089,134.84,134.79,18.58342089]
[1750560733290,18.58342089,134.84,134.8,18.58342089]
[1750560733489,18.58342089,134.85,134.81,18.58342089]
[1750560733668,24.02257642,134.85,134.81,18.58342089]
[1750560733872,24.02257642,134.84,134.8,4.45103857]
[1750560734189,18.58342089,134.84,134.8,4.45103857]
[1750560734366,24.02257642,134.84,134.8,4.45103857]
[1750560734557,18.58342089,134.84,134.8,4.45103857]
[1750560734760,5.44656348,134.83,134.8,4.45103857]
[1750560735468,18.58342089,134.84,134.8,23.03445946]
[1750560735677,18.58342089,134.85,134.8,23.03445946]
[1750560735886,24.03802441,134.84,134.8,23.03445946]
[1750560736068,5.45443029,134.83,134.8,23.03445946]
[1750560736388,18.58342089,134.84,134.8,23.03445946]
[1750560736703,5.45445542,134.83,134.8,4.45103857]
[1750560736870,5.46071356,134.82,134.8,4.45103857]
[1750560737070,5.46071356,134.83,134.8,4.45103857]
[1750560737303,18.58342089,134.84,134.8,4.45103857]
[1750560737588,5.46041299,134.83,134.8,23.03445946]
[1750560737794,23.03285019,134.85,134.8,23.03445946]
[1750560738000,18.58342089,134.82,134.77,23.03545027]
[1750560738164,5.46308054,134.81,134.77,23.03545027]
[1750560738368,18.58342089,134.82,134.77,23.03545027]
[1750560738596,5.46282919,134.81,134.77,23.03545027]
[1750560738791,18.58342089,134.82,134.77,23.03545027]
[1750560738965,5.46621456,134.81,134.77,23.03545027]
[1750560739166,5.46621456,134.8,134.77,23.03545027]
[1750560739479,18.58342089,134.82,134.77,23.03545027]
[1750560739675,5.46688663,134.81,134.77,23.03545027]
[1750560739877,5.46688663,134.8,134.77,23.03545027]
[1750560740080,18.58342089,134.82,134.77,23.03545027]
[1750560740270,5.4706061,134.81,134.77,23.03545027]
[1750560740471,5.4706061,134.8,134.77,23.03545027]
[1750560740688,5.4706061,134.79,134.77,23.03545027]
[1750560740870,18.58342089,134.82,134.77,23.03545027]
[1750560741083,5.47558267,134.81,134.77,23.03545027]
[1750560741281,5.47558267,134.8,134.77,23.03545027]
[1750560741588,18.58342089,134.82,134.77,23.03545027]
[1750560741792,5.47650202,134.81,134.78,18.58342089]
[1750560742105,44.59196001,134.83,134.77,4.45202938]
[1750560742106,33.38,134.83,134.77,15.58210283]
[1750560742292,5.4830017,134.82,134.8,18.58342089]
[1750560742588,5.48724743,134.81,134.79,18.58342089]
[1750560742794,33.38,134.83,134.8,4.45103857]
[1750560742995,5.48726059,134.82,134.8,4.45103857]
[1750560743198,5.48726059,134.81,134.8,23.03445946]
[1750560743495,33.38,134.83,134.8,23.03445946]
[1750560743670,5.48985249,134.82,134.8,23.03445946]
[1750560743869,25.34519871,134.85,134.8,23.03445946]
[1750560744079,5.4904249,134.84,134.8,23.03445946]
[1750560744292,5.4904249,134.83,134.8,23.03445946]
[1750560744496,5.4904249,134.82,134.8,23.03445946]
[1750560744669,18.58342089,134.84,134.8,4.45103857]
[1750560744868,5.48752735,134.83,134.8,23.03445946]
[1750560745089,5.48752735,134.82,134.81,18.58342089]
[1750560745401,5.48752735,134.84,134.81,18.58342089]
[1750560745571,33.32,134.85,134.81,18.58342089]
[1750560745765,5.4911068,134.84,134.8,4.45103857]
[1750560745974,5.4911068,134.83,134.8,23.03445946]
[1750560746201,51.90342089,134.85,134.8,23.03445946]
[1750560746394,5.49067021,134.84,134.8,23.03445946]
[1750560746696,5.49067021,134.83,134.81,18.58342089]
[1750560746896,33.32,134.85,134.81,18.58342089]
[1750560747191,5.49546142,134.84,134.81,18.58342089]
[1750560747379,33.32,134.85,134.81,18.58342089]
[1750560747567,5.49734003,134.84,134.81,18.58342089]
[1750560747768,33.32,134.85,134.81,18.58342089]
[1750560747969,5.49964687,134.84,134.81,18.58342089]
[1750560748270,18.58342089,134.86,134.81,18.58342089]
[1750560748467,5.49927803,134.85,134.81,18.58342089]
[1750560748671,5.49927803,134.84,134.82,4.45037828]
[1750560748885,48.78167525,134.87,134.82,15.55181114]
[1750560748886,55.43420659,134.87,134.82,15.55181114]
[1750560749099,5.50070011,134.86,134.82,15.55181114]
[1750560749270,5.50070011,134.85,134.82,15.55181114]
[1750560749477,11.01277373,134.87,134.82,15.55181114]
[1750560749681,5.50286154,134.86,134.82,15.55181114]
[1750560749899,5.50286154,134.85,134.82,15.55181114]
[1750560750099,11.01277373,134.87,134.82,15.55181114]
[1750560750290,5.5029359,134.86,134.82,4.45037828]
[1750560750490,5.5029359,134.85,134.82,15.55181114]
[1750560750690,22.11420659,134.87,134.82,15.55181114]
[1750560750886,5.50317283,134.86,134.82,15.55181114]
[1750560751092,5.50317283,134.85,134.82,15.55181114]
[1750560751395,11.01277373,134.87,134.83,11.10143286]
[1750560751582,5.50407174,134.88,134.82,15.57632398]
[1750560751780,16.6055046,134.87,134.82,4.45037828]
[1750560752010,16.6055046,134.86,134.82,4.45037828]
[1750560752203,5.50407174,134.85,134.82,15.55181114]
[1750560752515,5.50407174,134.86,134.84,11.10143286]
[1750560752711,5.50757858,134.88,134.84,11.10143286]
[1750560752922,33.32,134.89,134.85,15.55082106]
[1750560753252,5.50828914,134.88,134.85,15.55082106]
[1750560753390,5.50852472,134.89,134.85,15.55082106]
[1750560753589,52.82143286,134.9,134.85,15.55082106]
[1750560753809,5.50875999,134.89,134.85,15.55082106]
[1750560753997,52.82143286,134.9,134.85,15.55082106]
[1750560754198,5.50896393,134.89,134.85,15.55082106]
[1750560754525,52.82143286,134.9,134.85,15.55082106]
[1750560754690,5.51072879,134.89,134.85,4.4493882]
[1750560754886,8.4,134.9,134.86,11.10143286]
[1750560755293,8.4,134.9,134.87,11.10143286]
[1750560755512,13.91164173,134.9,134.87,11.10143286]
[1750560755809,13.91164173,134.9,134.88,11.10143286]
[1750560756014,5.51164173,134.91,134.89,11.10143286]
[1750560756310,5.51180092,134.93,134.9,11.10143286]
[1750560756484,5.51237832,134.92,134.85,15.57285872]
[1750560756682,5.51237832,134.92,134.88,11.10143286]
[1750560756911,16.61381118,134.92,134.88,4.44837629]
[1750560757118,11.10143286,134.89,134.85,11.10143286]
[1750560757715,11.10143286,134.89,134.84,11.10143286]
[1750560757716,16.61381118,134.89,134.84,11.10143286]
[1750560757922,11.10143286,134.89,134.84,11.10143286]
[1750560758124,16.61381118,134.89,134.84,11.10143286]
[1750560758434,11.10143286,134.89,134.84,11.10143286]
[1750560758603,16.61381118,134.88,134.83,11.10143286]
[1750560758803,11.10143286,134.88,134.84,4.44971818]
[1750560759002,16.61381118,134.88,134.84,4.44971818]
[1750560759307,11.10143286,134.88,134.84,4.44971818]
[1750560759701,11.10143286,134.87,134.84,4.44971818]
[1750560760235,16.61381118,134.9,134.85,11.10143286]
[1750560760529,44.42143286,134.9,134.85,11.10143286]
[1750560760757,11.10143286,134.89,134.84,15.55115104]
[1750560760904,5.51237832,134.89,134.84,15.55115104]
[1750560761105,49.93381118,134.9,134.85,11.10143286]
[1750560761729,44.42143286,134.9,134.85,11.10143286]
[1750560762243,5.51633027,134.91,134.89,11.10143286]
[1750560762541,5.515782,134.93,134.89,11.10143286]
[1750560763007,51.43471486,134.94,134.9,4.44773906]
[1750560763220,7.033282,134.94,134.91,11.10143286]
[1750560763434,1.5175,134.94,134.91,11.10143286]
[1750560763718,8.4,134.95,134.91,11.10143286]
[1750560764118,8.4,134.95,134.9,15.56708672]
[1750560764119,19.50143286,134.95,134.9,26.66851958]
[1750560764315,19.50143286,134.95,134.9,15.54917192]
[1750560764932,26.87662858,134.95,134.9,22.92436764]
[1750560766233,18.47662858,134.94,134.9,4.44773906]
[1750560766414,18.47662858,134.94,134.9,22.92436764]
[1750560766734,26.87662858,134.95,134.9,22.92436764]
[1750560767533,26.87662858,134.95,134.88,15.56919419]
[1750560767710,26.87662858,134.95,134.9,18.47662858]
[1750560769831,26.87662858,134.95,134.91,4.44740938]
[1750560770136,31.32283183,134.95,134.9,18.47662858]
[1750560770334,26.87662858,134.95,134.9,18.47662858]
[1750560771006,12.84619145,134.95,134.9,18.47662858]
[1750560771203,18.47662858,134.94,134.89,22.92469737]
[1750560771429,18.47662858,134.93,134.89,4.44806879]
[1750560771735,18.47662858,134.93,134.89,22.92469737]
[1750560772829,18.47662858,134.94,134.9,18.47662858]
[1750560773332,28.80852938,134.98,134.93,18.47662858]
[1750560773517,28.80852938,134.98,134.95,18.47662858]
[1750560773518,10.3319008,134.98,134.95,18.47662858]
[1750560773824,8.34,135.0,134.97,18.47662858]
[1750560774419,8.34,135.0,134.98,4.44510297]
[1750560774622,8.34,135.0,134.96,22.92239028]
[1750560776047,8.34,135.0,134.97,18.47662858]
[1750560776432,22.92046619,135.02,134.97,22.9218279]
[1750560776739,61.67522795,135.02,134.97,22.9218279]
[1750560776942,56.18046619,135.02,134.97,22.9218279]
[1750560777240,37.70383761,135.02,134.97,22.9218279]
[1750560777430,18.47662858,135.01,134.97,22.9218279]
[1750560780014,5.49084729,135.02,134.97,22.9218279]
[1750560780340,87.6,135.01,134.97,22.9218279]
[1750560780547,106.07662858,135.01,134.97,22.9218279]
[1750560780920,87.6,135.01,134.97,22.9218279]
[1750560781121,37.70361105,135.03,134.97,22.9218279]
[1750560781122,106.07662858,135.03,134.98,18.47662858]
[1750560782148,87.6,135.03,134.99,18.47662858]
[1750560782322,87.6,135.03,135.0,18.47662858]
[1750560782754,1.636,135.04,135.0,18.47662858]
[1750560783538,18.47662858,135.03,134.97,11.11358079]
[1750560783742,18.47662858,135.03,134.98,22.92173155]
[1750560784238,5.48025088,135.04,135.0,18.47662858]
[1750560784558,129.18,135.05,135.01,18.47662858]
[1750560784860,11.06618716,135.07,135.03,11.06618716]
[1750560785068,40.31123177,135.08,135.04,11.06618716]
[1750560785367,52.64618716,135.1,135.06,11.06618716]
[1750560785723,52.64618716,135.1,135.07,4.44214111]
[1750560786838,8.34,135.1,135.08,11.06618716]
[1750560787365,19.40618716,135.1,135.05,11.06618716]
[1750560787582,8.34,135.1,135.05,11.06618716]
[1750560787760,19.40618716,135.1,135.06,4.44247001]
[1750560787936,19.40618716,135.1,135.06,15.50865717]
[1750560788341,8.34,135.1,135.06,15.50865717]
[1750560788547,54.0997,135.14,135.06,15.50865717]
[1750560788548,8.34,135.15,135.08,11.06618716]
[1750560788856,11.06618716,135.13,135.08,11.06618716]
[1750560789247,11.06618716,135.1,135.06,4.44247001]
[1750560789765,44.28618716,135.11,135.06,15.50865717]
[1750560790964,48.72706515,135.11,135.06,15.50865717]
[1750560791458,44.28618716,135.11,135.07,11.06618716]
[1750560791647,33.22,135.11,135.08,4.44181225]
[1750560792475,48.70610122,135.14,135.09,11.06618716]
[1750560792673,11.06618716,135.1,135.05,11.06618716]
[1750560792836,11.06618716,135.1,135.06,11.06618716]
[1750560793036,44.26618716,135.11,135.06,11.06618716]
[1750560793780,48.7072325,135.11,135.06,15.50857944]
[1750560795070,37.64104534,135.11,135.06,15.50857944]
[1750560795249,44.26618716,135.11,135.06,15.50857944]
[1750560795448,54.16212293,135.11,135.06,15.50857944]
[1750560795678,48.70701634,135.11,135.06,15.50857944]
[1750560796144,11.06618716,135.07,135.01,17.32237315]
[1750560796343,11.06618716,135.07,135.02,11.06618716]
[1750560796567,11.06618716,135.03,134.98,11.06618716]
[1750560796755,33.2,135.04,134.98,11.06618716]
[1750560796957,11.06618716,135.03,134.98,11.06618716]
[1750560797150,11.06618716,135.02,134.98,4.44510297]
[1750560797351,43.09886077,135.04,134.99,11.06618716]
[1750560797352,37.64328255,135.04,134.99,11.06618716]
[1750560797672,11.06618716,135.03,134.98,15.51129013]
[1750560797873,37.64328255,135.04,134.98,15.51129013]
[1750560798184,11.06618716,135.03,134.98,15.51129013]
[1750560798670,11.06618716,135.02,134.98,4.44510297]
[1750560799246,5.46331435,135.02,134.97,4.44532355]
[1750560799583,33.18,135.01,134.97,4.44532355]
[1750560800371,33.18,135.01,134.97,15.51151071]
[1750560801280,11.06618716,135.02,134.97,26.6250915]
[1750560801942,12.64668716,135.03,134.98,11.06618716]